bitfinex/quotes_BTCUSD_20250809
["timestamp","ask_amount","ask_price","bid_price","bid_amount"]
[1754731941963,0.49200155,117440.0,117430.0,0.13225727]
[1754731942641,0.49200155,117440.0,117430.0,0.13024727]
[1754731947286,0.17335459,117440.0,117430.0,0.13525727]
[1754731947742,0.48678155,117440.0,117430.0,0.13525727]
[1754731948002,0.17335459,117440.0,117430.0,0.13525727]
[1754731948236,0.48678155,117440.0,117430.0,0.13525727]
[1754731948706,0.17335459,117440.0,117430.0,0.13525727]
[1754731949337,0.48678155,117440.0,117430.0,0.13525727]
[1754731949592,0.17551459,117440.0,117430.0,0.13525727]
[1754731949824,0.48894155,117440.0,117430.0,0.13525727]
[1754731950489,0.48894155,117440.0,117430.0,0.13225727]
[1754731951606,0.17335459,117440.0,117430.0,0.44868423]
[1754731953053,0.17335459,117440.0,117430.0,0.13525727]
[1754731953946,0.17551459,117440.0,117430.0,0.13225727]
[1754731958270,0.49188155,117440.0,117430.0,0.13225727]
[1754731959577,0.17845459,117440.0,117430.0,0.13225727]
[1754731959784,0.49188155,117440.0,117430.0,0.13225727]
[1754731961634,0.49188155,117440.0,117430.0,0.13024727]
[1754731961837,0.49188155,117440.0,117430.0,4.727e-05]
[1754731961838,1.14530851,117440.0,117430.0,4.727e-05]
[1754731962048,1.16275753,117440.0,117430.0,0.13020727]
[1754731962242,0.56147861,117440.0,117430.0,0.13020727]
[1754731962485,1.18833253,117440.0,117430.0,0.13020727]
[1754731965471,0.53296361,117440.0,117430.0,0.13020727]
[1754731965641,0.84639057,117440.0,117430.0,0.13221727]
[1754731966017,0.51335459,117440.0,117430.0,0.13521727]
[1754731966353,0.82678155,117440.0,117430.0,0.13521727]
[1754731966806,0.82894155,117440.0,117430.0,0.13221727]
[1754731967359,0.83188155,117440.0,117430.0,0.13221727]
[1754731968778,0.93637879,117440.0,117430.0,0.13221727]
[1754731969254,0.93637879,117440.0,117430.0,0.13020727]
[1754731970257,0.93343879,117440.0,117430.0,0.13221727]
[1754731970480,0.93343879,117440.0,117430.0,0.13521727]
[1754731970685,0.51335459,117440.0,117430.0,0.13521727]
[1754731971302,0.51551459,117440.0,117430.0,0.13521727]
[1754731971828,0.51551459,117440.0,117430.0,0.13221727]
[1754731972039,0.51869459,117440.0,117430.0,0.13221727]
[1754731972497,0.93661879,117440.0,117430.0,0.13221727]
[1754731973753,0.51869459,117440.0,117430.0,0.13221727]
[1754731973891,0.93661879,117440.0,117430.0,0.13221727]
[1754731976205,0.51869459,117440.0,117430.0,0.13221727]
[1754731976656,0.93661879,117440.0,117430.0,0.13221727]
[1754731977085,0.51551459,117440.0,117430.0,0.13221727]
[1754731977304,0.51335459,117440.0,117430.0,0.13516727]
[1754731977485,0.17335459,117440.0,117430.0,0.13516727]
[1754731979717,0.17544459,117440.0,117430.0,0.13516727]
[1754731981393,0.17544459,117440.0,117430.0,0.13221727]
[1754731981827,0.17544459,117440.0,117430.0,0.13516727]
[1754731982629,0.17335459,117440.0,117430.0,0.13516727]
[1754731991105,0.4867526,117440.0,117430.0,0.13516727]
[1754731994353,0.17335459,117440.0,117430.0,0.30548149]
[1754731994940,0.4867526,117440.0,117430.0,0.30548149]
[1754731995092,0.17335459,117440.0,117430.0,0.30548149]
[1754731996006,0.17544459,117440.0,117430.0,0.13516727]
[1754731996395,0.4888426,117440.0,117430.0,0.13221727]
[1754731997472,0.4888426,117440.0,117430.0,0.13516727]
[1754731997709,0.17544459,117440.0,117430.0,0.13516727]
[1754731997884,0.17335459,117440.0,117430.0,0.13516727]
[1754732002688,0.17335459,117440.0,117430.0,0.44856528]
[1754732002890,0.17335459,117440.0,117430.0,0.13516727]
[1754732004110,0.17135459,117440.0,117430.0,0.30548149]
[1754732004332,0.17035459,117440.0,117430.0,0.30548149]
[1754732004791,0.17354382,117450.0,117430.0,0.6188795]
[1754732005016,0.17036382,117450.0,117430.0,0.78194259]
[1754732005496,0.17036382,117450.0,117440.0,0.00322]
[1754732005708,0.17036382,117450.0,117440.0,0.00529]
[1754732006575,0.48376183,117450.0,117440.0,0.00529]
[1754732007028,0.48673183,117450.0,117440.0,0.00529]
[1754732007472,0.17333382,117450.0,117440.0,0.00529]
[1754732007693,0.48673183,117450.0,117440.0,0.00529]
[1754732009571,0.48673183,117450.0,117440.0,0.00207]
[1754732011765,0.48975183,117450.0,117440.0,0.00207]
[1754732012199,0.17029972,117440.0,117430.0,0.73260458]
[1754732012427,0.17029972,117440.0,117430.0,0.73467458]
[1754732015135,0.17029972,117440.0,117430.0,1.04807259]
[1754732018436,0.17029972,117440.0,117430.0,0.73467458]
[1754732018860,0.17029972,117440.0,117430.0,0.56436036]
[1754732020442,0.17029972,117440.0,117430.0,0.73467458]
[1754732020648,0.17029972,117440.0,117430.0,0.56436036]
[1754732022451,0.17029972,117440.0,117430.0,0.73467458]
[1754732022671,0.17036382,117450.0,117430.0,1.04807259]
[1754732022896,0.48376183,117450.0,117440.0,0.00322]
[1754732023094,0.48376183,117450.0,117440.0,0.00529]
[1754732023299,0.17036382,117450.0,117440.0,0.00529]
[1754732024411,0.48573183,117450.0,117440.0,0.00529]
[1754732026020,0.17233382,117450.0,117440.0,0.00529]
[1754732026234,0.48573183,117450.0,117440.0,0.00529]
[1754732027216,0.17233382,117450.0,117440.0,0.17558972]
[1754732027422,0.48573183,117450.0,117440.0,0.13211]
[1754732027848,0.17233382,117450.0,117440.0,0.13211]
[1754732028746,0.17535382,117450.0,117440.0,0.13211]
[1754732029137,0.48875183,117450.0,117440.0,0.13211]
[1754732030145,0.48875183,117450.0,117440.0,0.30240972]
[1754732030994,0.48573183,117450.0,117440.0,0.30240972]
[1754732031197,0.17233382,117450.0,117440.0,0.30240972]
[1754732031612,0.17233382,117450.0,117440.0,0.30543972]
[1754732032626,0.48573183,117450.0,117440.0,0.13514]
[1754732033027,0.48875183,117450.0,117440.0,0.13211]
[1754732034651,0.48875183,117450.0,117440.0,0.30240972]
[1754732038542,0.17535382,117450.0,117440.0,0.30240972]
[1754732038781,0.48875183,117450.0,117440.0,0.30240972]
[1754732038993,0.17029972,117440.0,117430.0,0.42891036]
[1754732039161,0.48582773,117440.0,117430.0,0.72926458]
[1754732039326,0.31854801,117440.0,117430.0,0.72926458]
[1754732039526,0.00213,117440.0,117430.0,0.73127458]
[1754732039731,0.17242972,117440.0,117430.0,0.73127458]
[1754732039950,0.17242972,117440.0,117430.0,1.04467259]
[1754732040163,0.17242972,117440.0,117430.0,1.04870259]
[1754732040367,0.51235083,117450.0,117430.0,1.04870259]
[1754732040591,0.51235083,117450.0,117430.0,0.73430458]
[1754732040792,0.51235083,117450.0,117430.0,1.04770259]
[1754732041053,0.19895282,117450.0,117430.0,1.04770259]
[1754732041316,0.51235083,117450.0,117430.0,1.04770259]
[1754732042370,0.51235083,117450.0,117430.0,0.73430458]
[1754732042584,0.17029972,117440.0,117430.0,0.73530458]
[1754732042795,0.17029972,117440.0,117430.0,1.04870259]
[1754732043432,0.17029972,117440.0,117430.0,1.04770259]
[1754732044246,0.51235083,117450.0,117430.0,1.04770259]
[1754732045744,0.17029972,117440.0,117430.0,1.04870259]
[1754732046175,0.51235083,117450.0,117430.0,1.04870259]
[1754732046398,0.19895282,117450.0,117430.0,1.04870259]
[1754732046546,0.19593282,117450.0,117430.0,1.04770259]
[1754732046758,0.50933083,117450.0,117430.0,1.04770259]
[1754732047166,0.50933083,117450.0,117430.0,0.73430458]
[1754732047347,0.50933083,117450.0,117430.0,1.04770259]
[1754732048976,0.50933083,117450.0,117430.0,1.04870259]
[1754732049885,0.17029972,117440.0,117430.0,1.04870259]
[1754732051794,0.17029972,117440.0,117430.0,1.04770259]
[1754732051997,0.17029972,117440.0,117430.0,0.73430458]
[1754732052197,0.17029972,117440.0,117430.0,1.04770259]
[1754732056508,0.17242972,117440.0,117430.0,0.73430458]
[1754732056733,0.17242972,117440.0,117430.0,1.04770259]
[1754732060263,0.17242972,117440.0,117430.0,0.73430458]
[1754732060622,0.17242972,117440.0,117430.0,1.04770259]
[1754732060826,0.17242972,117440.0,117430.0,0.73127458]
[1754732061489,0.17242972,117440.0,117430.0,0.73437458]
[1754732064050,0.17242972,117440.0,117430.0,1.04777259]
[1754732067415,0.17242972,117440.0,117430.0,0.73437458]
[1754732067682,0.17242972,117440.0,117430.0,1.04777259]
[1754732070304,0.17242972,117440.0,117430.0,0.87745837]
[1754732070559,0.17242972,117440.0,117430.0,1.04777259]
[1754732072181,0.17242972,117440.0,117430.0,0.87745837]
[1754732072827,0.17029972,117440.0,117430.0,1.04777259]
[1754732074114,0.17029972,117440.0,117430.0,0.73437458]
[1754732074330,0.17029972,117440.0,117430.0,1.04777259]
[1754732074995,0.51235083,117450.0,117430.0,1.04777259]
[1754732075211,0.51235083,117450.0,117440.0,0.12996]
[1754732075425,0.51433083,117450.0,117440.0,0.12996]
[1754732076538,0.51433083,117450.0,117440.0,0.13204]
[1754732076951,0.51533083,117450.0,117440.0,0.12996]
[1754732084657,0.51231083,117450.0,117440.0,0.13204]
[1754732087410,0.51537083,117450.0,117440.0,0.13204]
[1754732087826,0.51537083,117450.0,117440.0,0.12996]
[1754732088484,0.17029972,117440.0,117430.0,0.42891036]
[1754732088684,0.48567773,117440.0,117430.0,0.55883036]
[1754732088888,0.48873773,117440.0,117430.0,0.55883036]
[1754732089546,0.48873773,117440.0,117430.0,0.56091036]
[1754732089750,0.48567773,117440.0,117430.0,0.56091036]
[1754732091115,0.17227972,117440.0,117430.0,0.56091036]
[1754732091322,0.48886773,117440.0,117430.0,0.55883036]
[1754732091538,0.48886773,117440.0,117430.0,0.47196825]
[1754732091948,0.80226574,117440.0,117430.0,0.34204825]
[1754732092148,0.80226574,117440.0,117430.0,0.47196825]
[1754732092395,0.80226574,117440.0,117430.0,0.20616825]
[1754732092608,0.82783574,117440.0,117430.0,0.12996727]
[1754732093653,0.51443773,117440.0,117430.0,0.12996727]
[1754732094801,0.82783574,117440.0,117430.0,0.12996727]
[1754732096732,0.82783574,117440.0,117430.0,4.727e-05]
[1754732096949,0.82783574,117440.0,117430.0,0.12996727]
[1754732098494,0.20103972,117440.0,117430.0,0.12996727]
[1754732098720,0.51443773,117440.0,117430.0,0.12996727]
[1754732099944,0.51543773,117440.0,117430.0,0.12996727]
[1754732102182,0.82883574,117440.0,117430.0,0.12996727]
[1754732102392,0.89883574,117440.0,117430.0,0.12996727]
[1754732104206,1.22968277,117440.0,117430.0,4.727e-05]
[1754732104444,1.88686613,117440.0,117430.0,4.727e-05]
[1754732104647,1.81815824,117440.0,117430.0,4.727e-05]
[1754732105322,1.49678687,117440.0,117430.0,4.727e-05]
[1754732105987,1.50616642,117440.0,117430.0,4.727e-05]
[1754732106198,1.50916642,117440.0,117430.0,4.727e-05]
[1754732106408,1.82256443,117440.0,117430.0,4.727e-05]
[1754732111498,0.8823704,117440.0,117430.0,4.727e-05]
[1754732111713,1.82256443,117440.0,117430.0,4.727e-05]
[1754732112852,1.50916642,117440.0,117430.0,4.727e-05]
[1754732112990,0.69971183,117440.0,117430.0,4.727e-05]
[1754732113224,0.69971183,117440.0,117430.0,0.00498727]
[1754732113225,1.05616773,117440.0,117430.0,0.00498727]
[1754732113442,1.05616773,117440.0,117430.0,0.00204727]
[1754732113645,1.07680675,117440.0,117430.0,0.00204727]
[1754732113841,1.05935773,117440.0,117430.0,4.727e-05]
[1754732114074,1.07480675,117440.0,117430.0,4.727e-05]
[1754732114467,1.38820476,117440.0,117430.0,4.727e-05]
[1754732114672,1.38520476,117440.0,117430.0,4.727e-05]
[1754732114900,1.38720476,117440.0,117430.0,4.727e-05]
[1754732115671,1.38820476,117440.0,117430.0,4.727e-05]
[1754732116563,1.39668016,117440.0,117430.0,4.727e-05]
[1754732116784,1.38820476,117440.0,117430.0,4.727e-05]
[1754732122127,1.47506687,117440.0,117430.0,4.727e-05]
[1754732124983,1.16166886,117440.0,117430.0,4.727e-05]
[1754732125658,1.47506687,117440.0,117430.0,4.727e-05]
[1754732126466,1.48304087,117440.0,117430.0,4.727e-05]
[1754732130978,1.79643888,117440.0,117430.0,4.727e-05]
[1754732132982,1.88323313,117440.0,117430.0,4.727e-05]
[1754732133410,0.17034324,117410.0,117400.0,0.26905]
[1754732133617,0.61366125,117410.0,117400.0,0.00540031]
[1754732134235,0.63924125,117410.0,117400.0,0.00540031]
[1754732134651,0.32584324,117410.0,117400.0,0.00740031]
[1754732134875,0.63924125,117410.0,117400.0,0.00840031]
[1754732135523,0.63924125,117410.0,117400.0,0.00740031]
[1754732136506,0.63924125,117410.0,117400.0,0.00540031]
[1754732136756,0.63924125,117410.0,117400.0,0.00640031]
[1754732137194,0.32584324,117410.0,117400.0,0.31979832]
[1754732138030,0.32791324,117410.0,117400.0,0.31979832]
[1754732138280,0.32791324,117410.0,117400.0,0.00640031]
[1754732138500,0.32791324,117410.0,117400.0,0.31979832]
[1754732138936,0.32791324,117410.0,117400.0,0.00640031]
[1754732139159,0.32791324,117410.0,117400.0,0.31979832]
[1754732139376,0.32791324,117410.0,117400.0,0.00540031]
[1754732139836,0.32791324,117410.0,117400.0,0.31879832]
[1754732140379,0.64131125,117410.0,117400.0,0.00540031]
[1754732140589,0.33088324,117410.0,117400.0,8.031e-05]
[1754732141494,0.33088324,117410.0,117400.0,0.00215031]
[1754732142142,0.32791324,117410.0,117400.0,0.00215031]
[1754732142772,0.32791324,117410.0,117400.0,0.00540031]
[1754732149224,0.64131125,117410.0,117400.0,0.00540031]
[1754732150870,0.64131125,117410.0,117400.0,0.00215031]
[1754732152439,0.32791324,117410.0,117400.0,0.31554832]
[1754732154344,0.33108324,117410.0,117400.0,0.31554832]
[1754732155495,0.33108324,117410.0,117400.0,0.00215031]
[1754732155681,0.33108324,117410.0,117400.0,0.31347832]
[1754732156854,0.33108324,117410.0,117400.0,0.31556832]
[1754732157306,0.32791324,117410.0,117400.0,0.31556832]
[1754732160832,0.32791324,117410.0,117400.0,0.00217031]
[1754732161045,0.32791324,117410.0,117400.0,0.31556832]
[1754732163517,0.32791324,117410.0,117400.0,0.31850832]
[1754732165151,0.39791324,117410.0,117400.0,0.31850832]
[1754732169100,0.39791324,117410.0,117400.0,0.00511031]
[1754732169316,0.39791324,117410.0,117400.0,0.31556832]
[1754732172061,0.40108324,117410.0,117400.0,0.31556832]
[1754732172284,0.40108324,117410.0,117400.0,0.00217031]
[1754732172514,0.40108324,117410.0,117400.0,8.031e-05]
[1754732173451,0.71448125,117410.0,117400.0,8.031e-05]
[1754732174848,0.40108324,117410.0,117400.0,8.031e-05]
[1754732176535,0.40108324,117410.0,117400.0,0.00217031]
[1754732179256,0.39791324,117410.0,117400.0,0.00217031]
[1754732179491,0.39791324,117410.0,117400.0,0.31556832]
[1754732180801,0.39791324,117410.0,117400.0,0.00217031]
[1754732185024,0.39791324,117410.0,117400.0,0.31556832]
[1754732188344,0.39791324,117410.0,117400.0,0.44540832]
[1754732190294,0.39791324,117410.0,117400.0,0.31556832]
[1754732191919,0.39791324,117410.0,117400.0,0.00217031]
[1754732192136,0.39791324,117410.0,117400.0,0.31556832]
[1754732192370,0.39791324,117410.0,117400.0,0.31865832]
[1754732193745,0.26592324,117410.0,117400.0,0.31865832]
[1754732193965,0.26592324,117410.0,117400.0,0.63205633]
[1754732194177,0.02558,117410.0,117400.0,0.87861506]
[1754732194399,0.17034131,117420.0,117410.0,0.17034324]
[1754732194614,0.19591631,117420.0,117410.0,0.61559125]
[1754732194821,0.17034131,117420.0,117410.0,0.61868125]
[1754732203238,0.17034131,117420.0,117410.0,0.61864125]
[1754732203834,0.17034131,117420.0,117410.0,0.44829801]
[1754732204739,0.17034131,117420.0,117410.0,0.1349]
[1754732204962,0.17233131,117420.0,117410.0,0.1349]
[1754732208469,0.17533131,117420.0,117410.0,0.1298]
[1754732209107,0.17533131,117420.0,117410.0,0.13181]
[1754732209338,0.17233131,117420.0,117410.0,0.13181]
[1754732209800,0.17233131,117420.0,117410.0,0.44520801]
[1754732210880,0.17233131,117420.0,117410.0,0.44829801]
[1754732216049,0.17233131,117420.0,117410.0,0.1349]
[1754732216262,0.17233131,117420.0,117410.0,0.44829801]
[1754732220283,0.17034131,117420.0,117410.0,0.44829801]
[1754732220499,0.17034131,117420.0,117410.0,0.30524324]
[1754732220699,0.17034131,117420.0,117410.0,0.44829801]
[1754732223578,0.17034131,117420.0,117410.0,0.52449899]
[1754732224040,0.17034131,117420.0,117410.0,0.44829801]
[1754732224401,0.17034131,117420.0,117410.0,0.52449899]
[1754732226042,0.17248131,117420.0,117410.0,0.52449899]
[1754732226246,0.17248131,117420.0,117410.0,0.52140899]
[1754732226469,0.17248131,117420.0,117410.0,0.20801098]
[1754732226621,0.17248131,117420.0,117410.0,0.52140899]
[1754732226888,0.80239733,117420.0,117410.0,0.20600098]
[1754732227019,0.17034324,117410.0,117400.0,0.47184129]
[1754732227219,0.48900125,117410.0,117400.0,0.26588031]
[1754732227446,0.48900125,117410.0,117400.0,0.39564031]
[1754732227646,0.51458025,117410.0,117400.0,0.39564031]
[1754732227846,0.20118224,117410.0,117400.0,0.39564031]
[1754732228107,0.51146025,117410.0,117400.0,0.39564031]
[1754732228449,0.51458025,117410.0,117400.0,0.39564031]
[1754732231536,0.51458025,117410.0,117400.0,0.12984031]
[1754732231782,0.20118224,117410.0,117400.0,0.12984031]
[1754732231998,0.51458025,117410.0,117400.0,0.12984031]
[1754732233334,0.20118224,117410.0,117400.0,0.12984031]
[1754732233574,0.51458025,117410.0,117400.0,0.12984031]
[1754732237718,0.51458025,117410.0,117400.0,0.12980031]
[1754732239748,0.51458025,117410.0,117400.0,8.031e-05]
[1754732239977,0.51458025,117410.0,117400.0,0.12980031]
[1754732240193,0.20118224,117410.0,117400.0,0.12980031]
[1754732240416,0.51458025,117410.0,117400.0,0.12980031]
[1754732241288,0.53202927,117410.0,117400.0,0.12980031]
[1754732242555,0.52890927,117410.0,117400.0,0.13182031]
[1754732244132,0.53210927,117410.0,117400.0,0.12980031]
[1754732245918,0.52890927,117410.0,117400.0,0.13182031]
[1754732246136,0.52890927,117410.0,117400.0,0.00210031]
[1754732246415,0.21551126,117410.0,117400.0,0.13182031]
[1754732246630,0.52890927,117410.0,117400.0,0.13503031]
[1754732246813,0.21551126,117410.0,117400.0,0.13503031]
[1754732248733,0.52890927,117410.0,117400.0,0.13503031]
[1754732249348,0.21551126,117410.0,117400.0,0.13503031]
[1754732249790,0.52890927,117410.0,117400.0,0.13503031]
[1754732250231,0.52890927,117410.0,117400.0,0.13182031]
[1754732252269,1.34184701,117410.0,117400.0,8.031e-05]
[1754732252433,1.36537701,117410.0,117400.0,8.031e-05]
[1754732253128,1.74303939,117410.0,117400.0,1e-08]
[1754732253560,1.68975228,117410.0,117400.0,1e-08]
[1754732253969,1.37635427,117410.0,117400.0,1e-08]
[1754732254212,1.68975228,117410.0,117400.0,1e-08]
[1754732254565,1.69175228,117410.0,117400.0,1e-08]
[1754732254783,1.58831877,117410.0,117400.0,1e-08]
[1754732255448,1.51884115,117410.0,117400.0,1e-08]
[1754732255855,1.10046089,117410.0,117400.0,1e-08]
[1754732256489,1.10932472,117410.0,117400.0,1e-08]
[1754732256704,1.23904472,117410.0,117400.0,1e-08]
[1754732257427,1.23106746,117410.0,117400.0,1e-08]
[1754732265500,1.20753746,117410.0,117400.0,1e-08]
[1754732265706,1.19547363,117410.0,117400.0,1e-08]
[1754732266055,1.19547363,117410.0,117400.0,0.00523001]
[1754732266056,0.75750435,117410.0,117400.0,0.00523001]
[1754732266684,0.77495337,117410.0,117400.0,0.00523001]
[1754732266829,0.77195337,117410.0,117400.0,0.00523001]
[1754732267207,0.77495337,117410.0,117400.0,0.00523001]
[1754732267407,0.76995337,117410.0,117400.0,0.00523001]
[1754732267610,1.18833363,117410.0,117400.0,0.00523001]
[1754732267811,1.19233363,117410.0,117400.0,0.00523001]
[1754732268432,1.19033363,117410.0,117400.0,0.00523001]
[1754732268846,1.19133363,117410.0,117400.0,0.00523001]
[1754732270096,1.19339363,117410.0,117400.0,0.00523001]
[1754732276420,1.19133363,117410.0,117400.0,0.00523001]
[1754732276616,1.0865806,117410.0,117400.0,0.00523001]
[1754732277267,0.53892224,117410.0,117400.0,0.00523001]
[1754732277482,0.66860224,117410.0,117400.0,0.00523001]
[1754732288099,0.53892224,117410.0,117400.0,0.00523001]
[1754732288533,0.19892224,117410.0,117400.0,0.00523001]
[1754732289911,0.20092224,117410.0,117400.0,0.00523001]
[1754732290106,0.19992224,117410.0,117400.0,0.00523001]
[1754732290535,0.20092224,117410.0,117400.0,0.00523001]
[1754732290961,0.19992224,117410.0,117400.0,0.00523001]
[1754732291918,0.19792224,117410.0,117400.0,0.00523001]
[1754732292285,0.19792224,117410.0,117400.0,0.00202001]
[1754732293306,0.19992224,117410.0,117400.0,0.00202001]
[1754732293512,0.19792224,117410.0,117400.0,0.00202001]
[1754732299898,0.19792224,117410.0,117400.0,1e-08]
[1754732300136,0.20104224,117410.0,117400.0,1e-08]
[1754732301159,0.19792224,117410.0,117400.0,0.00215001]
[1754732303693,0.20114224,117410.0,117400.0,1e-08]
[1754732306468,0.19792224,117410.0,117400.0,0.00210001]
[1754732306671,0.19792224,117410.0,117400.0,0.3156849]
[1754732307696,0.19792224,117410.0,117400.0,0.3188749]
[1754732308813,0.19792224,117410.0,117400.0,0.00210001]
[1754732309022,0.51472713,117410.0,117400.0,0.00210001]
[1754732309245,0.20114224,117410.0,117400.0,0.00210001]
[1754732309963,0.20114224,117410.0,117400.0,0.3156849]
[1754732312475,0.20114224,117410.0,117400.0,0.00210001]
[1754732312684,0.20114224,117410.0,117400.0,0.3156849]
[1754732315113,0.19792224,117410.0,117400.0,0.3156849]
[1754732315927,0.19792224,117410.0,117400.0,0.3188749]
[1754732318306,0.19792224,117410.0,117400.0,0.00529001]
[1754732318521,0.19792224,117410.0,117400.0,0.3188749]
[1754732319802,0.19792224,117410.0,117400.0,0.00529001]
[1754732320002,0.19792224,117410.0,117400.0,0.3188749]
[1754732322667,0.19792224,117410.0,117400.0,0.00529001]
[1754732322883,0.19792224,117410.0,117400.0,0.3188749]
[1754732329644,0.19792224,117410.0,117400.0,0.00529001]
[1754732329858,0.19792224,117410.0,117400.0,0.3188749]
[1754732331817,0.19792224,117410.0,117400.0,0.00529001]
[1754732332030,0.19792224,117410.0,117400.0,0.3188749]
[1754732339649,0.19792224,117410.0,117400.0,0.00529001]
[1754732339877,0.19792224,117410.0,117400.0,0.3188749]
[1754732340177,0.19792224,117410.0,117400.0,0.00529001]
[1754732340395,0.19792224,117410.0,117400.0,0.3188749]
[1754732342507,0.19792224,117410.0,117400.0,0.00529001]
[1754732342713,0.19792224,117410.0,117400.0,0.3188749]
[1754732343513,0.19792224,117410.0,117400.0,0.00529001]
[1754732343680,0.19792224,117410.0,117400.0,0.3188749]
[1754732346532,0.19592224,117410.0,117400.0,0.3188749]
[1754732347176,0.19592224,117410.0,117400.0,0.63245979]
[1754732350661,0.19592224,117410.0,117400.0,0.00529001]
[1754732350799,0.19592224,117410.0,117400.0,0.63245979]
[1754732359559,0.19592224,117410.0,117400.0,0.00529001]
[1754732359782,0.19592224,117410.0,117400.0,0.63245979]
[1754732360950,0.19592224,117410.0,117400.0,0.00529001]
[1754732361149,0.19592224,117410.0,117400.0,0.3188749]
[1754732361357,0.19592224,117410.0,117400.0,0.00529001]
[1754732361563,0.19592224,117410.0,117400.0,0.3188749]
[1754732361975,0.19592224,117410.0,117400.0,0.63245979]
[1754732364626,0.19592224,117410.0,117400.0,0.3188749]
[1754732365070,0.19592224,117410.0,117400.0,0.63245979]
[1754732371305,0.19592224,117410.0,117400.0,0.76197979]
[1754732372272,0.19592224,117410.0,117400.0,0.13481001]
[1754732372485,0.19592224,117410.0,117400.0,0.76197979]
[1754732373971,0.19592224,117410.0,117400.0,0.13481001]
[1754732374206,0.19592224,117410.0,117400.0,0.76197979]
[1754732381242,0.19592224,117410.0,117400.0,0.13481001]
[1754732381470,0.19592224,117410.0,117400.0,0.76197979]
[1754732401690,0.19592224,117410.0,117400.0,0.93233754]
[1754732402129,0.025579,117410.0,117400.0,1.40898552]
[1754732402339,0.17034131,117420.0,117410.0,0.17034324]
[1754732402551,0.19591731,117420.0,117410.0,0.92906302]
[1754732402756,0.025576,117420.0,117410.0,0.93201302]
[1754732402931,0.19590473,117420.0,117410.0,0.93201302]
[1754732404064,0.025576,117420.0,117410.0,0.93201302]
[1754732404484,0.17885419,117430.0,117410.0,1.19781302]
[1754732404697,0.20442819,117430.0,117420.0,0.75959978]
[1754732404929,0.20442819,117430.0,117420.0,0.76166978]
[1754732406285,0.20442819,117430.0,117420.0,0.93199851]
[1754732406286,0.025574,117430.0,117420.0,0.93199851]
[1754732406948,0.17029972,117440.0,117430.0,0.17031422]
[1754732407162,0.17029972,117440.0,117430.0,0.61544911]
[1754732407379,0.19587072,117440.0,117430.0,0.61839911]
[1754732408469,0.19587072,117440.0,117430.0,0.44808489]
[1754732408898,0.17029972,117440.0,117430.0,0.44808489]
[1754732410249,0.17029972,117440.0,117430.0,0.456744]
[1754732410467,0.20445008,117450.0,117430.0,0.94064311]
[1754732410685,0.17554972,117440.0,117430.0,0.01072911]
[1754732410899,0.17032873,117420.0,117410.0,0.47606099]
[1754732411125,0.17240873,117420.0,117410.0,0.20871098]
[1754732411348,0.17557873,117420.0,117410.0,0.13044]
[1754732411560,0.17557873,117420.0,117410.0,0.45150385]
[1754732412429,0.17557873,117420.0,117410.0,0.45250385]
[1754732412857,0.17557873,117420.0,117410.0,0.13891896]
[1754732413068,0.17557873,117420.0,117410.0,0.45250385]
[1754732413511,0.17557873,117420.0,117410.0,0.45457385]
[1754732414210,0.17240873,117420.0,117410.0,0.45457385]
[1754732415880,0.17032873,117420.0,117410.0,0.45752385]
[1754732416100,0.17032873,117420.0,117410.0,0.94145198]
[1754732416427,0.19588822,117430.0,117420.0,0.17032873]
[1754732416633,0.17031422,117430.0,117420.0,0.89150972]
[1754732416839,0.17031422,117430.0,117420.0,0.88938062]
[1754732417241,0.2043857,117440.0,117420.0,0.88938062]
[1754732417513,0.2043857,117440.0,117430.0,0.44597489]
[1754732417725,0.2043857,117440.0,117430.0,0.44804489]
[1754732418142,0.2064657,117440.0,117430.0,0.44804489]
[1754732418805,0.2064657,117440.0,117430.0,0.5523003]
[1754732419020,0.2064657,117440.0,117430.0,0.5472803]
[1754732419230,0.2116357,117440.0,117430.0,0.5472803]
[1754732419442,0.2096357,117440.0,117430.0,0.12944]
[1754732419649,0.2106357,117440.0,117430.0,0.12944]
[1754732420709,0.2106357,117440.0,117430.0,0.5472803]
[1754732422180,0.2106357,117440.0,117430.0,0.12944]
[1754732422433,0.2096357,117440.0,117430.0,0.12944]
[1754732423515,0.2096357,117440.0,117430.0,0.5472803]
[1754732425134,0.2096357,117440.0,117430.0,0.12944]
[1754732425620,0.17031422,117430.0,117420.0,0.77050241]
[1754732425835,0.17241422,117430.0,117420.0,0.89994241]
[1754732426218,0.17241422,117430.0,117420.0,0.90203241]
[1754732426418,0.17241422,117430.0,117420.0,0.13153]
[1754732427596,0.17565422,117430.0,117420.0,0.13253]
[1754732428714,0.17565422,117430.0,117420.0,0.13044]
[1754732430136,0.20122822,117430.0,117420.0,0.13044]
[1754732431629,0.20122822,117430.0,117420.0,0.12944]
[1754732436450,0.20122822,117430.0,117420.0,0.13153]
[1754732436797,0.19798822,117430.0,117420.0,0.13153]
[1754732438742,0.19798822,117430.0,117420.0,0.44498551]
[1754732440205,0.20122822,117430.0,117420.0,0.44498551]
[1754732441705,0.19798822,117430.0,117420.0,0.44498551]
[1754732447012,0.17032873,117420.0,117410.0,0.35364994]
[1754732447227,0.17032873,117420.0,117410.0,0.79859545]
[1754732448398,0.17032873,117420.0,117410.0,0.79959545]
[1754732455660,0.17032873,117420.0,117410.0,0.48613994]
[1754732455867,0.17032873,117420.0,117410.0,0.79959545]
[1754732458585,0.11266002,117420.0,117410.0,0.79959545]
[1754732460560,0.43122553,117420.0,117410.0,0.07720098]
[1754732460788,0.74468104,117420.0,117410.0,0.1304]
[1754732461026,0.43122553,117420.0,117410.0,0.1304]
[1754732462664,0.11777002,117420.0,117410.0,0.1304]
[1754732463032,0.53585934,117420.0,117410.0,0.1304]
[1754732463270,0.53585934,117420.0,117410.0,0.1294]
[1754732463703,0.11777002,117420.0,117410.0,0.1294]
[1754732465664,0.54449127,117420.0,117410.0,0.1294]
[1754732465864,0.11777002,117420.0,117410.0,0.1294]
[1754732466122,0.53585934,117420.0,117410.0,0.1294]
[1754732467530,0.11777002,117420.0,117410.0,0.1294]
[1754732467681,0.53585934,117420.0,117410.0,0.1294]
[1754732469164,0.54444534,117420.0,117410.0,0.1294]
[1754732469584,0.17034324,117410.0,117400.0,0.08790903]
[1754732469849,0.17034324,117410.0,117400.0,0.21939903]
[1754732470696,0.17034324,117410.0,117400.0,0.08999903]
[1754732470921,0.17034324,117410.0,117400.0,0.21939903]
[1754732471170,0.17034324,117410.0,117400.0,0.22039903]
[1754732471591,0.17034324,117410.0,117400.0,0.21172099]
[1754732471820,0.17034324,117410.0,117400.0,0.22006963]
[1754732472901,0.17034324,117410.0,117400.0,0.21172099]
[1754732475423,0.17034324,117410.0,117400.0,0.22019941]
[1754732477517,0.17034324,117410.0,117400.0,0.09079941]
[1754732477721,0.17034324,117410.0,117400.0,0.22019941]
[1754732480767,0.17034324,117410.0,117400.0,0.09079941]
[1754732480984,0.17034324,117410.0,117400.0,0.22019941]
[1754732481413,0.17545324,117410.0,117400.0,0.21507941]
[1754732481822,0.17545324,117410.0,117400.0,0.21702941]
[1754732482025,0.17237324,117410.0,117400.0,0.21702941]
[1754732482912,0.48596412,117410.0,117400.0,0.21702941]